bitfinex/quotes_BTCUSD_20241028
["timestamp","ask_amount","ask_price","bid_price","bid_amount"]
[1730126470321,0.000823,68876.0,68875.0,0.005]
[1730126471919,0.000823,68876.0,68875.0,0.009]
[1730126472622,0.000823,68876.0,68875.0,0.01]
[1730126473101,0.000823,68876.0,68875.0,0.15519]
[1730126473332,0.000823,68876.0,68875.0,0.01]
[1730126473568,0.000823,68876.0,68875.0,0.15519]
[1730126474268,0.000823,68876.0,68875.0,0.01]
[1730126476087,0.000823,68876.0,68875.0,0.15519]
[1730126476316,0.000823,68876.0,68875.0,0.01]
[1730126476993,0.146011,68876.0,68875.0,0.01]
[1730126477215,0.000823,68876.0,68875.0,0.01]
[1730126478133,0.000823,68876.0,68875.0,0.006]
[1730126478581,0.000823,68876.0,68875.0,0.008]
[1730126478799,0.146011,68876.0,68875.0,0.008]
[1730126478995,0.000823,68876.0,68875.0,0.008]
[1730126479257,0.003823,68876.0,68875.0,0.008]
[1730126484262,0.149011,68876.0,68875.0,0.008]
[1730126485119,0.003823,68876.0,68875.0,0.008]
[1730126485361,0.149011,68876.0,68875.0,0.008]
[1730126490271,0.145195,68873.0,68871.0,0.1905]
[1730126490474,0.290385,68875.0,68871.0,0.1905]
[1730126490702,0.145191,68875.0,68871.0,0.1905]
[1730126491075,0.149011,68876.0,68871.0,0.335698]
[1730126491276,0.003823,68876.0,68871.0,0.1905]
[1730126491476,0.146012,68876.0,68875.0,0.001646]
[1730126492665,0.000823,68876.0,68875.0,0.001646]
[1730126493028,0.000823,68876.0,68875.0,0.32227462]
[1730126493257,0.000823,68876.0,68875.0,0.154836]
[1730126493927,0.000823,68876.0,68875.0,0.30824313]
[1730126494158,0.000823,68876.0,68875.0,0.154836]
[1730126494371,0.003823,68876.0,68875.0,0.154836]
[1730126494713,0.000823,68876.0,68875.0,0.154836]
[1730126494922,0.001823,68876.0,68875.0,0.162836]
[1730126495281,0.000823,68876.0,68875.0,0.151836]
[1730126495752,0.002823,68876.0,68875.0,0.169836]
[1730126495955,0.001823,68876.0,68875.0,0.161836]
[1730126496312,0.001823,68876.0,68875.0,0.157836]
[1730126496720,0.002823,68876.0,68875.0,0.166836]
[1730126497577,0.148011,68876.0,68875.0,0.016646]
[1730126498222,0.002823,68876.0,68875.0,0.016646]
[1730126498645,0.148011,68876.0,68875.0,0.016646]
[1730126498861,0.002823,68876.0,68875.0,0.016646]
[1730126500270,0.002823,68876.0,68875.0,0.1970704]
[1730126500485,0.002823,68876.0,68875.0,0.28517377]
[1730126500687,0.002823,68876.0,68875.0,0.2851736]
[1730126501304,0.002823,68876.0,68875.0,0.247036]
[1730126502371,0.002823,68876.0,68875.0,0.39753981]
[1730126503696,0.002823,68876.0,68875.0,0.51863981]
[1730126504625,0.001823,68876.0,68875.0,0.51263981]
[1730126504842,0.2176026,68892.0,68888.0,0.005]
[1730126505058,0.2176026,68892.0,68891.0,0.31559462]
[1730126505266,0.2176026,68892.0,68891.0,0.39719462]
[1730126505481,0.2176026,68899.0,68891.0,0.39719462]
[1730126505482,0.2176026,68899.0,68896.0,0.145145]
[1730126505918,0.2176026,68899.0,68892.0,0.290308]
[1730126506128,0.145132,68903.0,68895.0,0.145146]
[1730126507020,0.145135,68902.0,68892.0,0.290309]
[1730126507232,0.145135,68902.0,68894.0,0.14515]
[1730126507436,0.145132,68903.0,68891.0,0.0816]
[1730126507648,0.145132,68903.0,68895.0,0.145147]
[1730126507878,0.008,68899.0,68896.0,0.001]
[1730126508113,0.145138,68900.0,68892.0,0.145154]
[1730126508342,0.145138,68900.0,68893.0,0.145152]
[1730126508570,0.145136,68901.0,68894.0,0.001]
[1730126508777,0.145136,68901.0,68893.0,0.145152]
[1730126508990,0.145136,68901.0,68894.0,0.14515]
[1730126509257,0.008,68899.0,68896.0,0.001]
[1730126509458,0.008,68899.0,68895.0,0.145147]
[1730126510094,0.008,68899.0,68895.0,0.146147]
[1730126510302,0.008,68899.0,68895.0,0.001]
[1730126510766,0.145156,68892.0,68884.0,0.4408726]
[1730126510974,0.145157,68891.0,68884.0,0.2957026]
[1730126511618,0.290305,68893.0,68885.0,0.145168]
[1730126511866,0.145155,68892.0,68885.0,0.145168]
[1730126512280,0.001,68891.0,68886.0,0.290334]
[1730126512495,0.001,68891.0,68887.0,0.29323201]
[1730126512703,0.145151,68894.0,68888.0,0.145161]
[1730126512914,0.145151,68894.0,68888.0,0.145162]
[1730126513165,0.290294,68896.0,68887.0,0.00290301]
[1730126513388,0.145148,68895.0,68888.0,0.145161]
[1730126513590,0.14515,68894.0,68888.0,0.145161]
[1730126514031,0.001,68892.0,68888.0,0.145161]
[1730126514243,0.001,68892.0,68889.0,0.0528498]
[1730126514705,0.001,68893.0,68889.0,0.0528498]
[1730126515564,0.2406026,68898.0,68889.0,0.1980088]
[1730126515811,0.145148,68895.0,68889.0,0.1980088]
[1730126516026,0.001,68892.0,68889.0,0.0648498]
[1730126516745,0.001,68892.0,68889.0,0.012]
[1730126517185,0.001,68892.0,68889.0,0.008]
[1730126517390,0.145158,68890.0,68889.0,0.012]
[1730126517606,0.145158,68890.0,68889.0,0.004]
[1730126517819,0.145158,68890.0,68884.0,0.223271]
[1730126518031,0.145161,68890.0,68884.0,0.0781]
[1730126518251,0.145161,68890.0,68889.0,0.005]
[1730126518468,0.290302,68894.0,68889.0,0.001]
[1730126518681,0.290305,68893.0,68884.0,0.0781]
[1730126518888,0.145159,68890.0,68889.0,0.004]
[1730126519099,0.145159,68890.0,68889.0,0.008]
[1730126519100,0.146159,68890.0,68889.0,0.008]
[1730126519610,0.31966281,68890.0,68889.0,0.008]
[1730126520498,0.32066281,68890.0,68889.0,0.008]
[1730126520719,0.31966281,68890.0,68889.0,0.008]
[1730126521170,0.182159,68890.0,68889.0,0.001]
[1730126521624,0.159159,68890.0,68889.0,0.001]
[1730126521887,0.014,68890.0,68889.0,0.01055]
[1730126522358,0.014,68890.0,68889.0,0.155711]
[1730126522583,0.014,68890.0,68889.0,0.01055]
[1730126522795,0.023,68890.0,68889.0,0.002]
[1730126524148,0.009,68890.0,68889.0,0.001]
[1730126524579,0.290296,68896.0,68889.0,0.003]
[1730126524836,0.145149,68895.0,68889.0,0.003]
[1730126525054,0.001,68890.0,68889.0,0.01]
[1730126525735,0.38804122,68901.0,68889.0,0.003]
[1730126525949,0.290288,68897.0,68889.0,0.003]
[1730126526192,0.290288,68897.0,68889.0,0.01]
[1730126526193,0.001,68896.0,68889.0,0.01]
[1730126526419,0.145149,68895.0,68889.0,0.01]
[1730126526651,0.145158,68890.0,68889.0,0.007]
[1730126527141,0.145158,68890.0,68889.0,0.01]
[1730126527890,0.145158,68890.0,68889.0,0.007]
[1730126528133,0.145158,68890.0,68889.0,0.01]
[1730126528598,0.145158,68890.0,68889.0,0.003]
[1730126528835,0.145158,68890.0,68889.0,0.004]
[1730126529556,0.145158,68890.0,68889.0,0.003]
[1730126529782,0.000823,68890.0,68883.0,0.2176026]
[1730126530250,0.145163,68889.0,68883.0,0.3627756]
[1730126530716,0.001823,68890.0,68888.0,0.145161]
[1730126530942,0.002823,68890.0,68889.0,0.49999962]
[1730126531178,0.002823,68890.0,68889.0,0.50499962]
[1730126531179,0.001823,68890.0,68889.0,0.50499962]
[1730126531860,0.000823,68890.0,68889.0,0.334561]
[1730126532540,0.001823,68890.0,68889.0,0.334561]
[1730126532946,0.000823,68890.0,68889.0,0.334561]
[1730126533381,0.001823,68890.0,68889.0,0.341561]
[1730126533604,0.002823,68890.0,68889.0,0.350561]
[1730126534094,0.002823,68890.0,68889.0,0.68150343]
[1730126534734,0.002823,68890.0,68889.0,1.0287688]
[1730126534958,0.2176026,68908.0,68898.0,0.51878062]
[1730126535202,0.2176026,68900.0,68898.0,0.66728443]
[1730126535434,0.2176026,68908.0,68898.0,0.66728443]
[1730126535874,0.2176026,68908.0,68898.0,0.66928443]
[1730126536122,0.2176026,68908.0,68898.0,0.66728443]
[1730126536354,0.2176026,68908.0,68898.0,0.66928443]
[1730126536593,0.2176026,68908.0,68898.0,0.66728443]
[1730126536802,0.001823,68899.0,68898.0,0.69528443]
[1730126538401,0.001823,68899.0,68898.0,0.52484581]
[1730126539554,0.001823,68899.0,68898.0,0.51984581]
[1730126539775,0.001823,68899.0,68898.0,0.359342]
[1730126540010,0.001823,68899.0,68898.0,0.2142]
[1730126540250,0.146962,68899.0,68898.0,0.028]
[1730126541609,0.32046581,68899.0,68898.0,0.028]
[1730126542057,0.32046581,68899.0,68898.0,0.014]
[1730126542281,0.145171,68884.0,68883.0,0.2176026]
[1730126542703,0.290327,68888.0,68883.0,0.2176026]
[1730126542961,0.290322,68889.0,68881.0,0.290354]
[1730126543187,0.145168,68886.0,68882.0,0.145175]
[1730126543418,0.29033,68887.0,68880.0,0.0794]
[1730126543651,0.290309,68892.0,68883.0,0.005]
[1730126543889,0.145163,68888.0,68884.0,0.145171]
[1730126544108,0.145168,68886.0,68883.0,0.005]
[1730126544332,0.145169,68885.0,68883.0,0.005]
[1730126545016,0.290333,68887.0,68883.0,0.005]
[1730126545256,0.290314,68891.0,68884.0,0.0519937]
[1730126545595,0.145162,68889.0,68885.0,0.145169]
[1730126545685,0.145162,68889.0,68884.0,0.0519937]
[1730126545686,0.005,68889.0,68884.0,0.0519937]
[1730126545910,0.145163,68888.0,68885.0,0.16226873]
[1730126546125,0.001,68886.0,68885.0,0.01709973]
[1730126546344,0.001,68886.0,68882.0,0.006]
[1730126546564,0.145164,68888.0,68883.0,0.145171]
[1730126546803,0.145164,68888.0,68884.0,0.145169]
[1730126547037,0.145164,68888.0,68884.0,0.146169]
[1730126547239,0.145164,68888.0,68884.0,0.147169]
[1730126547453,0.145164,68888.0,68884.0,0.146169]
[1730126547678,0.009,68889.0,68885.0,0.145167]
[1730126547891,0.154161,68889.0,68885.0,0.145167]
[1730126548110,0.154161,68889.0,68884.0,0.00390312]
[1730126548111,0.009,68889.0,68884.0,0.001]
[1730126548335,0.009,68889.0,68888.0,0.145163]
[1730126549026,0.145149,68895.0,68892.0,0.145154]
[1730126549256,0.145152,68894.0,68883.0,0.290343]
[1730126549536,0.145152,68894.0,68890.0,0.145158]
[1730126550210,0.145146,68896.0,68892.0,0.145153]
[1730126550436,0.145146,68896.0,68892.0,0.001]
[1730126550437,0.009,68895.0,68892.0,0.001]
[1730126550707,0.150151,68894.0,68892.0,0.001]
[1730126550937,0.009,68895.0,68892.0,0.03261913]
[1730126551152,0.009,68895.0,68894.0,0.14515]
[1730126551366,0.009,68895.0,68894.0,0.22485]
[1730126551594,0.009,68895.0,68894.0,0.38325646]
[1730126551804,0.009,68895.0,68894.0,0.48615381]
[1730126552041,0.009,68895.0,68894.0,0.52362811]
[1730126552475,0.000823,68899.0,68898.0,0.145142]
[1730126552704,0.000823,68899.0,68898.0,0.14804434]
[1730126552972,0.06506557,68927.0,68906.0,0.005]
[1730126553277,0.2176026,68919.0,68915.0,0.339506]
[1730126553712,0.5077566,68929.0,68915.0,0.339506]
[1730126553713,0.145079,68928.0,68915.0,0.37112513]
[1730126554169,0.2176026,68929.0,68915.0,0.37112513]
[1730126554881,0.145079,68928.0,68915.0,0.37112513]
[1730126555108,0.2176026,68929.0,68915.0,0.37112513]
[1730126555577,0.000822,68930.0,68915.0,0.74923154]
[1730126555863,0.000822,68930.0,68915.0,0.63162894]
[1730126556080,0.000822,68930.0,68915.0,0.64162894]
[1730126556296,0.001823,68916.0,68915.0,0.64562894]
[1730126556735,0.001823,68916.0,68915.0,0.65962894]
[1730126556969,0.000823,68916.0,68915.0,0.64562894]
[1730126557221,0.000822,68930.0,68916.0,0.262104]
[1730126557445,0.000822,68930.0,68919.0,0.60297424]
[1730126557658,0.000822,68930.0,68919.0,0.94597805]
[1730126557659,0.778322,68920.0,68919.0,0.94597805]
[1730126557864,0.778322,68920.0,68919.0,1.20882943]
[1730126558530,0.778322,68920.0,68919.0,1.21082943]
[1730126558989,0.778322,68920.0,68919.0,1.38126805]
[1730126559211,0.664222,68920.0,68919.0,1.41288718]
[1730126559662,0.664222,68920.0,68919.0,1.25644856]
[1730126560122,0.664222,68920.0,68919.0,1.24244856]
[1730126560351,0.62951622,68920.0,68919.0,1.25644856]
[1730126560789,0.62951622,68920.0,68919.0,1.24244856]
[1730126561053,0.62951622,68920.0,68919.0,1.2459161]
[1730126561264,0.62951622,68920.0,68919.0,1.2599161]
[1730126562159,0.62951622,68920.0,68919.0,1.2739161]
[1730126562377,0.62951622,68920.0,68919.0,1.2599161]
[1730126563043,0.62951622,68920.0,68919.0,1.2459161]
[1730126563263,0.62951622,68920.0,68919.0,1.2739161]
[1730126564621,0.62951622,68920.0,68919.0,1.2619161]
[1730126565723,0.62951622,68920.0,68919.0,1.2599161]
[1730126566185,0.62951622,68920.0,68919.0,0.92689081]
[1730126566394,0.62951622,68920.0,68919.0,0.95489081]
[1730126566594,0.62951622,68920.0,68919.0,0.94089081]
[1730126566798,0.62951622,68920.0,68919.0,0.92689081]
[1730126567010,0.62951622,68920.0,68919.0,0.94089081]
[1730126567216,0.62951622,68920.0,68919.0,1.11132943]
[1730126567481,0.62951622,68920.0,68919.0,1.12532943]
[1730126567918,0.62951622,68920.0,68919.0,1.11132943]
[1730126568358,0.63033922,68920.0,68919.0,1.09732943]
[1730126568842,0.63033922,68920.0,68919.0,1.11132943]
[1730126569682,0.63033922,68920.0,68919.0,1.12532943]
[1730126570834,0.63033922,68920.0,68919.0,1.12732943]
[1730126571778,0.50320779,68920.0,68919.0,1.41046805]
[1730126572007,0.000822,68930.0,68929.0,0.452876]
[1730126572255,0.2176026,68942.0,68939.0,0.150055]
[1730126572480,0.2176026,68942.0,68939.0,0.585225]
[1730126572713,5.119e-05,68954.0,68939.0,0.585225]
[1730126572922,0.14507619,68954.0,68939.0,0.585225]
[1730126573129,0.145029,68952.0,68939.0,0.585225]
[1730126573557,0.17043862,68952.0,68939.0,0.585225]
[1730126573777,0.0771,68949.0,68939.0,0.585225]
[1730126574054,0.0771,68949.0,68939.0,0.580225]
[1730126574278,0.19343862,68944.0,68939.0,0.43517]
[1730126574497,0.19343862,68944.0,68939.0,0.594225]
[1730126574921,0.023,68944.0,68939.0,0.607225]
[1730126575146,0.000822,68945.0,68939.0,0.594225]
[1730126575593,0.000822,68945.0,68939.0,0.604225]
[1730126575799,0.000822,68945.0,68939.0,0.594225]
[1730126576233,0.000822,68945.0,68939.0,0.604225]
[1730126576437,0.000822,68945.0,68939.0,0.580225]
[1730126576900,0.000822,68945.0,68939.0,0.594225]
[1730126577546,0.023,68944.0,68939.0,0.594225]
[1730126577777,0.023,68944.0,68939.0,0.604225]
[1730126578018,0.168045,68944.0,68939.0,0.45917]
[1730126578449,0.023,68944.0,68939.0,0.604225]
[1730126583103,0.000822,68945.0,68939.0,0.604225]
[1730126583364,0.31636462,68940.0,68939.0,0.45917]
[1730126583585,0.33936462,68940.0,68939.0,0.45917]
[1730126583813,0.168926,68940.0,68939.0,0.45917]
[1730126584519,0.168926,68940.0,68939.0,0.43517]
[1730126584742,0.000873,68940.0,68939.0,0.43517]
[1730126584975,0.145926,68940.0,68939.0,0.43917]
[1730126585213,0.168926,68940.0,68939.0,0.43917]
[1730126587447,0.60532981,68940.0,68939.0,0.43917]
[1730126587666,0.60332981,68940.0,68939.0,0.43917]
[1730126587874,0.85332981,68940.0,68939.0,0.43917]
[1730126588085,0.95572472,68940.0,68939.0,0.43917]
[1730126588535,0.95572472,68940.0,68919.0,0.001646]
[1730126588536,0.51742562,68924.0,68919.0,0.001646]
[1730126588771,0.66792943,68924.0,68919.0,0.001646]
[1730126589212,0.023,68923.0,68919.0,0.001646]
[1730126589431,0.168095,68920.0,68919.0,0.001646]
[1730126589657,0.33853362,68920.0,68919.0,0.001646]
[1730126591853,0.33953362,68920.0,68919.0,0.002646]
[1730126593146,0.34753362,68920.0,68919.0,0.003646]
[1730126594043,0.177095,68920.0,68919.0,0.003646]
[1730126594250,0.032,68920.0,68919.0,0.003646]
[1730126594655,0.177095,68920.0,68919.0,0.003646]
[1730126594934,0.032,68920.0,68919.0,0.003646]
[1730126595169,0.177095,68920.0,68919.0,0.003646]
[1730126596478,0.009,68920.0,68919.0,0.38584681]
[1730126597561,0.008,68920.0,68919.0,0.38484681]
[1730126597782,0.008,68920.0,68919.0,0.233343]
[1730126598022,0.031,68920.0,68919.0,0.151743]
[1730126598250,0.290145,68931.0,68919.0,0.151743]
[1730126598251,0.023,68923.0,68919.0,0.001646]
[1730126598457,0.023,68923.0,68919.0,0.152743]
[1730126598704,0.023,68921.0,68919.0,0.013646]
[1730126599157,0.023,68922.0,68919.0,0.004646]
[1730126599582,0.168093,68922.0,68919.0,0.011646]
[1730126599788,0.023,68921.0,68919.0,0.011646]
[1730126600245,0.023,68921.0,68919.0,0.001646]
[1730126600246,0.168094,68921.0,68919.0,0.001646]
[1730126600464,0.023,68922.0,68919.0,0.146742]
[1730126600684,0.023,68920.0,68919.0,0.001646]
[1730126601387,0.023,68920.0,68919.0,0.004646]
[1730126601606,0.168095,68920.0,68919.0,0.004646]
[1730126601805,0.023,68927.0,68920.0,0.290191]
[1730126602025,0.145073,68931.0,68928.0,0.145078]
[1730126602237,0.145073,68931.0,68927.0,0.14508]
[1730126602452,0.145073,68931.0,68928.0,0.145078]
[1730126602712,0.145073,68931.0,68926.0,0.290166]
[1730126602920,0.290133,68934.0,68929.0,0.145075]
[1730126602921,0.145069,68933.0,68929.0,0.145075]
[1730126603131,0.02273586,68935.0,68925.0,0.370469]
[1730126603282,0.435199,68934.0,68929.0,0.145075]
[1730126603494,0.145068,68933.0,68929.0,0.145075]
[1730126603902,0.001,68931.0,68929.0,0.145075]
[1730126604480,0.001,68931.0,68927.0,0.001]
[1730126604684,0.023,68933.0,68928.0,0.145076]
[1730126605103,0.290132,68934.0,68929.0,0.001]
[1730126605104,0.023,68931.0,68929.0,0.001]
[1730126605311,0.023,68929.0,68925.0,0.225383]
[1730126605521,0.023,68929.0,68926.0,0.001]
[1730126605933,0.023,68929.0,68925.0,0.145083]
[1730126606144,0.023,68929.0,68926.0,0.145082]
[1730126606368,0.168095,68920.0,68919.0,0.001646]
[1730126606592,0.023,68920.0,68919.0,0.146743]
[1730126606803,0.023,68925.0,68919.0,0.146743]
[1730126607015,0.14509,68923.0,68919.0,0.146743]
[1730126607226,0.023,68922.0,68919.0,0.291841]
[1730126607439,0.290139,68933.0,68919.0,0.291841]
[1730126607440,0.023,68927.0,68919.0,0.291841]
[1730126607647,0.023,68927.0,68923.0,0.145088]
[1730126608099,0.023,68927.0,68922.0,0.290183]
[1730126608304,0.023,68927.0,68923.0,0.145088]
[1730126608511,0.023,68926.0,68923.0,0.145088]
[1730126608714,0.023,68926.0,68919.0,0.004646]
[1730126608715,0.023,68926.0,68919.0,0.294841]
[1730126608920,0.458243,68927.0,68926.0,0.004]
[1730126609516,0.023,68922.0,68919.0,0.146742]
[1730126610076,0.313175,68924.0,68919.0,0.001646]
[1730126610297,0.023,68924.0,68919.0,0.001646]
[1730126610522,0.023,68922.0,68919.0,0.001646]
[1730126610723,0.023,68922.0,68921.0,0.145093]
[1730126610933,0.146081,68927.0,68923.0,0.145088]
[1730126611145,0.023,68926.0,68923.0,0.145088]
[1730126611349,0.023,68926.0,68920.0,0.290191]
[1730126611350,0.023,68926.0,68924.0,0.145087]
[1730126611574,0.145089,68923.0,68919.0,0.117046]
[1730126611783,0.023,68922.0,68919.0,0.004646]
[1730126611999,0.023,68922.0,68919.0,0.149743]
[1730126612205,0.023,68922.0,68919.0,0.156743]
[1730126612631,0.023,68922.0,68919.0,0.153743]
[1730126612862,0.023,68920.0,68919.0,0.008646]
[1730126613285,0.168095,68920.0,68919.0,0.008646]
[1730126613689,0.168095,68920.0,68919.0,0.011646]
[1730126613889,0.168095,68920.0,68919.0,0.001646]
[1730126614334,0.168095,68920.0,68919.0,0.004646]
[1730126616050,0.168095,68920.0,68919.0,0.011646]
[1730126617073,0.168095,68920.0,68919.0,0.001646]
[1730126617487,0.169095,68920.0,68919.0,0.004646]
[1730126619345,0.169095,68920.0,68919.0,0.002646]
[1730126619874,0.33953362,68920.0,68919.0,0.002646]
[1730126620079,0.33953362,68920.0,68919.0,0.003646]
[1730126620080,0.34353362,68920.0,68919.0,0.003646]
[1730126620581,0.005,68920.0,68919.0,0.148743]
[1730126620753,0.005,68920.0,68919.0,0.15164457]
[1730126621448,0.005,68920.0,68919.0,0.148743]
[1730126622056,0.027,68920.0,68919.0,0.002646]
[1730126622468,0.027,68920.0,68919.0,0.003646]
[1730126622469,0.028,68920.0,68919.0,0.003646]
[1730126622693,0.027,68920.0,68919.0,0.002646]
[1730126623106,0.023,68920.0,68919.0,0.005646]
[1730126623303,0.46061462,68924.0,68919.0,0.001646]
[1730126623304,0.023,68921.0,68919.0,0.001646]
[1730126623578,0.004,68920.0,68919.0,0.002646]
[1730126623744,0.027,68920.0,68919.0,0.004646]
[1730126624191,0.168091,68923.0,68919.0,0.003646]
[1730126624675,0.023,68923.0,68919.0,0.009646]
[1730126624934,0.023,68921.0,68919.0,0.009646]
[1730126625169,0.023,68921.0,68919.0,0.003646]
[1730126625375,0.023,68923.0,68919.0,0.001646]
[1730126625625,0.023,68923.0,68919.0,0.003646]
[1730126625788,0.16809,68923.0,68919.0,0.001646]
[1730126626168,0.16809,68923.0,68919.0,0.003646]
[1730126626869,0.16809,68923.0,68919.0,0.005646]
[1730126627071,0.023,68920.0,68919.0,0.005646]
[1730126627611,0.023,68923.0,68919.0,0.011646]
[1730126627823,0.168089,68923.0,68919.0,0.011646]
[1730126628239,0.168089,68923.0,68919.0,0.001646]
[1730126628460,0.145088,68924.0,68919.0,0.146743]
[1730126628683,0.023,68921.0,68919.0,0.009646]
[1730126628909,0.023,68920.0,68919.0,0.007646]
[1730126629130,0.023,68920.0,68919.0,0.003646]
[1730126629361,0.168095,68920.0,68919.0,0.001646]
[1730126629811,0.168095,68920.0,68919.0,0.003646]
[1730126630020,0.023,68920.0,68919.0,0.146743]
[1730126630225,0.023,68920.0,68919.0,0.001646]
[1730126630430,0.168095,68920.0,68919.0,0.001646]
[1730126630653,0.023,68920.0,68919.0,0.001646]
[1730126630881,0.168095,68920.0,68919.0,0.001646]
[1730126631306,0.168095,68920.0,68919.0,0.003646]
[1730126631736,0.168095,68920.0,68919.0,0.009646]
[1730126632408,0.023,68920.0,68919.0,0.003646]
[1730126632626,0.168095,68920.0,68919.0,0.003646]
[1730126632824,0.023,68920.0,68919.0,0.003646]
[1730126633314,0.145095,68920.0,68919.0,0.009646]
[1730126633533,0.168095,68920.0,68919.0,0.009646]
[1730126633780,0.023,68920.0,68919.0,0.009646]
[1730126633986,0.145095,68920.0,68919.0,0.009646]
[1730126634187,0.023,68920.0,68919.0,0.009646]
[1730126634413,0.168095,68920.0,68919.0,0.009646]
[1730126635506,0.580359,68923.0,68919.0,0.009646]
[1730126635507,0.023,68921.0,68919.0,0.009646]
[1730126636132,0.023,68920.0,68919.0,0.009646]
[1730126636337,0.023,68922.0,68919.0,0.154743]
[1730126636539,0.145095,68921.0,68919.0,0.003646]
[1730126636745,0.023,68920.0,68919.0,0.003646]
[1730126636977,0.023,68920.0,68919.0,0.009646]
[1730126637110,0.168091,68922.0,68919.0,0.009646]
[1730126637514,0.168091,68922.0,68919.0,0.007646]
[1730126637919,0.168091,68922.0,68919.0,0.009646]
[1730126638147,0.168091,68922.0,68919.0,0.007646]
[1730126638537,0.023,68920.0,68919.0,0.009646]
[1730126638969,0.023,68920.0,68919.0,0.003646]
[1730126639187,0.168095,68920.0,68919.0,0.003646]
[1730126639435,0.33853362,68920.0,68919.0,0.009646]
[1730126639708,0.48903743,68920.0,68919.0,0.009646]
[1730126640370,0.48903743,68920.0,68919.0,0.003646]
[1730126641281,0.48903743,68920.0,68919.0,0.001646]
[1730126641484,0.48903743,68920.0,68919.0,0.003646]
[1730126641912,0.48903743,68920.0,68919.0,0.001646]
[1730126642151,0.49003743,68920.0,68919.0,0.002646]
[1730126642360,0.49403743,68920.0,68919.0,0.003646]
[1730126643023,0.48903743,68920.0,68919.0,0.001646]
[1730126643232,0.63252086,68920.0,68919.0,0.001646]
[1730126643482,0.59303743,68920.0,68919.0,0.002646]
[1730126643702,0.85803743,68920.0,68919.0,0.002646]
[1730126643931,0.92379141,68920.0,68919.0,0.002646]
[1730126644147,0.99499141,68920.0,68919.0,0.001646]
[1730126644355,0.99599141,68920.0,68919.0,0.002646]
[1730126644564,0.92973743,68920.0,68919.0,0.001646]
[1730126644804,0.95247769,68920.0,68919.0,0.001646]
[1730126645031,0.78303907,68920.0,68919.0,0.002646]
[1730126645256,0.80377622,68920.0,68919.0,0.002646]
[1730126645924,0.79777622,68920.0,68919.0,0.003646]
[1730126646162,0.72257622,68920.0,68919.0,0.003646]
[1730126646366,0.67909881,68920.0,68919.0,0.003646]
[1730126646981,0.42409881,68920.0,68919.0,0.003646]
[1730126647226,0.42409881,68920.0,68919.0,0.002646]
[1730126647227,0.42009881,68920.0,68919.0,0.002646]
[1730126647455,0.41909881,68920.0,68919.0,0.001646]
[1730126647703,0.42009881,68920.0,68919.0,0.002646]
[1730126647923,0.42409881,68920.0,68919.0,0.003646]
[1730126648429,0.173595,68920.0,68919.0,0.003646]
[1730126648614,0.150595,68920.0,68919.0,0.003646]
[1730126649833,0.169595,68920.0,68919.0,0.002646]
[1730126650176,0.173595,68920.0,68919.0,0.003646]
[1730126650383,0.172595,68920.0,68919.0,0.002646]
[1730126650787,0.169595,68920.0,68919.0,0.002646]
[1730126651020,0.0245,68920.0,68919.0,0.002646]
[1730126651236,0.0285,68920.0,68919.0,0.083846]
[1730126651957,0.0285,68920.0,68919.0,0.228943]
[1730126653129,0.0245,68920.0,68919.0,0.227943]
[1730126653716,0.0005,68920.0,68919.0,0.231943]
[1730126654034,0.0005,68920.0,68919.0,0.232943]
[1730126656290,0.0005,68920.0,68919.0,0.37334477]
[1730126656483,0.0005,68920.0,68919.0,0.370443]
[1730126657253,0.0005,68920.0,68919.0,0.364443]
[1730126657682,0.0005,68920.0,68919.0,0.374443]
[1730126658206,0.0005,68920.0,68919.0,0.388443]
[1730126659007,0.0005,68920.0,68919.0,0.73194442]
[1730126659421,0.0005,68920.0,68919.0,0.77527414]
[1730126659822,0.0005,68920.0,68919.0,0.82194442]
[1730126660027,0.0005,68920.0,68919.0,0.80794442]
[1730126660222,0.0005,68920.0,68919.0,0.86521914]
[1730126660452,0.0005,68920.0,68919.0,0.68078052]
[1730126660671,0.0005,68920.0,68919.0,0.86521914]
[1730126660978,0.0005,68920.0,68919.0,0.87921914]
[1730126661219,0.0005,68920.0,68919.0,0.86521914]
[1730126661424,0.0005,68920.0,68919.0,0.6515058]
[1730126661624,0.0005,68920.0,68919.0,0.6655058]
[1730126661871,0.0005,68920.0,68919.0,0.6635058]
[1730126663390,0.0005,68920.0,68919.0,0.6655058]
[1730126663607,0.0005,68920.0,68919.0,0.83594442]
[1730126664253,0.0005,68920.0,68919.0,0.6655058]
[1730126664678,0.0005,68920.0,68919.0,0.6635058]
[1730126665346,0.0005,68920.0,68919.0,0.83394442]
[1730126665556,0.0005,68920.0,68919.0,0.6635058]
[1730126665761,0.0005,68920.0,68919.0,0.6655058]
[1730126666433,0.0005,68920.0,68919.0,0.83594442]
[1730126666642,0.0005,68920.0,68919.0,0.6655058]
[1730126666799,0.0005,68920.0,68919.0,1.1007958]
[1730126670549,0.0005,68920.0,68919.0,1.27123442]
[1730126673555,0.2176026,68937.0,68933.0,0.870408]
[1730126673752,0.2176026,68937.0,68936.0,0.32050062]
[1730126673983,0.000822,68945.0,68938.0,0.150057]
[1730126674216,0.000822,68945.0,68938.0,0.30346147]
[1730126674424,0.000822,68945.0,68938.0,0.73863147]
[1730126674636,0.000822,68945.0,68938.0,0.73573081]
[1730126675864,0.000822,68945.0,68938.0,0.74973081]
[1730126676632,0.000822,68945.0,68938.0,0.76273081]